bitfinex-derivatives/quotes_BTCF0:USTF0_20241021
["timestamp","ask_amount","ask_price","bid_price","bid_amount"]
[1729478568679,0.76,69000.0,68998.0,0.38572413]
[1729478569378,0.76,69000.0,68998.0,0.3608]
[1729478569876,0.34721909,69011.0,68999.0,0.24498572]
[1729478570073,0.34721909,69011.0,69005.0,0.08678083]
[1729478570270,0.41968909,69011.0,69010.0,0.07228298]
[1729478570584,0.78193909,69011.0,69005.0,0.07228847]
[1729478570880,0.72,69006.0,69005.0,0.07228847]
[1729478571081,0.72,69006.0,69005.0,0.11050378]
[1729478571386,1.15476,69006.0,69004.0,0.07224892]
[1729478571578,0.72,69006.0,69004.0,0.07224892]
[1729478571777,0.072476,69005.0,69004.0,0.07224892]
[1729478572166,0.72,69006.0,69002.0,0.07224892]
[1729478572376,0.433278,69003.0,69002.0,0.07224892]
[1729478572677,0.433278,69003.0,69002.0,0.18275254]
[1729478573080,0.433278,69003.0,69002.0,0.11050362]
[1729478573281,0.433278,69003.0,69001.0,0.07221853]
[1729478573786,0.433278,69003.0,69002.0,0.07221853]
[1729478574077,0.45862203,69003.0,69002.0,0.11050348]
[1729478574272,0.45862203,69003.0,69002.0,0.07217787]
[1729478574472,0.45962203,69003.0,69002.0,0.07317787]
[1729478574977,0.45962203,69003.0,69002.0,0.18367995]
[1729478575171,0.45962203,69003.0,69002.0,0.07317787]
[1729478575372,0.45962203,69003.0,69002.0,0.18367804]
[1729478575571,0.45962203,69003.0,69002.0,0.001]
[1729478576288,0.45862203,69003.0,69002.0,0.001]
[1729478576475,0.45962203,69003.0,69002.0,0.001]
[1729478578778,0.09882203,69003.0,69002.0,0.001]
[1729478582578,0.02634403,69003.0,69002.0,0.001]
[1729478582882,0.002,69003.0,69002.0,0.001]
[1729478583281,0.002,69003.0,69002.0,0.0328]
[1729478591285,0.00217392,69016.0,69003.0,0.072478]
[1729478591483,0.00217392,69016.0,69014.0,0.072467]
[1729478591790,0.72217392,69016.0,69014.0,0.072467]
[1729478592094,0.72217392,69016.0,69015.0,0.033]
[1729478592398,0.72,69016.0,69015.0,0.033]
[1729478592601,0.721,69016.0,69015.0,0.033]
[1729478592893,0.3608,69027.0,69020.0,0.07246]
[1729478593087,0.3608,69027.0,69023.0,0.04334467]
[1729478593287,0.72,69026.0,69025.0,0.04334467]
[1729478593588,0.72,69026.0,69024.0,0.04334467]
[1729478593980,0.792454,69026.0,69024.0,0.04334467]
[1729478594388,0.793454,69026.0,69025.0,0.002]
[1729478594991,0.793454,69026.0,69024.0,0.003]
[1729478595697,0.793454,69026.0,69025.0,0.003]
[1729478596190,0.793454,69026.0,69025.0,0.006]
[1729478596384,0.793454,69026.0,69025.0,0.003]
[1729478597390,0.826754,69026.0,69025.0,0.003]
[1729478597793,0.43464,69025.0,69017.0,0.04334467]
[1729478597984,0.072469,69012.0,69008.0,0.04334467]
[1729478598183,0.3608,69018.0,69006.0,0.04334467]
[1729478598184,0.072471,69010.0,69006.0,0.04334467]
[1729478598385,0.072476,69005.0,69004.0,0.04334467]
[1729478598794,0.792476,69005.0,69004.0,0.04334467]
[1729478599702,0.793476,69005.0,69004.0,0.04634467]
[1729478599997,0.793476,69005.0,69004.0,0.003]
[1729478601585,0.794476,69005.0,69004.0,0.003]
[1729478602295,1.155276,69005.0,69004.0,0.003]
[1729478605797,0.072491,68991.0,68990.0,0.02733576]
[1729478606005,0.072491,68991.0,68990.0,0.00217414]
[1729478606190,0.072491,68991.0,68983.0,0.0648]
[1729478606191,0.072494,68988.0,68983.0,0.0648]
[1729478606390,0.072494,68988.0,68983.0,0.0900584]
[1729478606594,0.72,68987.0,68983.0,0.0569584]
[1729478607997,0.721,68987.0,68983.0,0.0569584]
[1729478608494,0.794495,68987.0,68983.0,0.0317]
[1729478609390,0.794495,68987.0,68976.0,0.38530803]
[1729478609391,0.072498,68985.0,68976.0,0.45781403]
[1729478609592,0.072498,68985.0,68979.0,0.072503]
[1729478610697,0.073498,68985.0,68979.0,0.072503]
[1729478610901,0.074498,68985.0,68979.0,0.072503]
[1729478611295,0.073498,68985.0,68979.0,0.072503]
[1729478611606,0.074498,68985.0,68982.0,0.0725]
[1729478612813,0.074498,68985.0,68976.0,0.3608]
[1729478612814,0.002,68985.0,68976.0,0.3608]
[1729478613101,0.0725,68982.0,68976.0,0.433306]
[1729478613700,0.0725,68982.0,68976.0,0.3608]
[1729478613901,0.0725,68982.0,68978.0,0.072504]
[1729478614101,0.0725,68982.0,68976.0,0.3608]
[1729478614699,0.001,68982.0,68976.0,0.3608]
[1729478614899,0.072502,68981.0,68976.0,0.3608]
[1729478615103,0.02525232,68991.0,68977.0,0.24504294]
[1729478615304,0.072492,68990.0,68988.0,0.07219307]
[1729478615610,0.072494,68988.0,68987.0,0.07219307]
[1729478615808,0.072494,68988.0,68987.0,0.18271366]
[1729478616006,0.702494,68988.0,68987.0,0.07219307]
[1729478616594,0.702494,68988.0,68986.0,0.07219307]
[1729478617510,0.703494,68988.0,68986.0,0.07219307]
[1729478617810,0.703494,68988.0,68987.0,0.07219307]
[1729478618002,0.703494,68988.0,68987.0,0.18271291]
[1729478618508,0.704494,68988.0,68987.0,0.07219307]
[1729478619210,0.703494,68988.0,68987.0,0.07219307]
[1729478619510,0.704494,68988.0,68987.0,0.07219307]
[1729478621010,0.704494,68988.0,68986.0,0.07219307]
[1729478621503,0.704494,68988.0,68987.0,0.07219307]
[1729478622110,0.703494,68988.0,68987.0,0.07219307]
[1729478622306,0.704494,68988.0,68987.0,0.07219307]
[1729478622700,0.704494,68988.0,68987.0,0.11051984]
[1729478623215,0.072497,68986.0,68981.0,0.3608]
[1729478623700,0.072497,68985.0,68981.0,0.3608]
[1729478625105,0.073497,68985.0,68981.0,0.3608]
[1729478625315,0.072498,68984.0,68981.0,0.3608]
[1729478625607,0.0725,68983.0,68978.0,0.3608]
[1729478627119,0.001,68984.0,68978.0,0.3608]
[1729478627120,0.001,68985.0,68978.0,0.3608]
[1729478627309,0.001,68983.0,68978.0,0.3608]
[1729478627512,0.001,68985.0,68984.0,0.433298]
[1729478627707,0.02483992,68989.0,68984.0,0.433298]
[1729478627909,0.63,68989.0,68986.0,0.072495]
[1729478628108,0.63,68989.0,68987.0,0.0316]
[1729478629512,0.631,68989.0,68987.0,0.0316]
[1729478630109,0.632,68989.0,68988.0,0.24503148]
[1729478630914,0.632,68989.0,68988.0,0.18300969]
[1729478631114,0.58120907,68989.0,68988.0,0.35021496]
[1729478631314,0.58020907,68989.0,68988.0,0.35021496]
[1729478631516,0.002,68989.0,68988.0,0.94355432]
[1729478631717,0.00217466,69003.0,69001.0,0.07248]
[1729478632021,0.00217466,69003.0,69002.0,0.58982203]
[1729478632205,0.31,69003.0,69002.0,0.50291569]
[1729478632711,0.072443,69038.0,69021.0,0.072459]
[1729478632917,0.072441,69038.0,69037.0,0.3608]
[1729478633219,0.07245,69030.0,69029.0,0.43317746]
[1729478633418,0.07245,69030.0,69029.0,0.3608]
[1729478633608,0.07245,69030.0,69019.0,0.36192]
[1729478633609,0.4346,69030.0,69027.0,0.05783636]
[1729478633924,0.3608,69028.0,69025.0,8.4e-07]
[1729478634213,0.3608,69028.0,69013.0,0.43535103]
[1729478634214,0.07246,69020.0,69018.0,0.05783636]
[1729478634414,0.0633,69019.0,69018.0,0.05783636]
[1729478634617,0.0633,69019.0,69016.0,0.05783636]
[1729478634824,0.072465,69016.0,69014.0,0.05783636]
[1729478635007,0.49798,69019.0,69013.0,0.42080993]
[1729478635207,0.072467,69014.0,69013.0,0.36297357]
[1729478635611,0.507147,69014.0,69013.0,0.36297357]
[1729478635911,0.507147,69014.0,69013.0,0.3608]
[1729478636414,0.540047,69014.0,69013.0,0.3608]
[1729478636615,0.56526905,69014.0,69013.0,0.3608]
[1729478638114,1.58177137,69014.0,69013.0,0.3608]
[1729478639221,1.58177137,69014.0,69006.0,0.3608]
[1729478639222,1.50930437,69014.0,69006.0,0.3608]
[1729478639518,0.072471,69010.0,69006.0,0.3608]
[1729478639719,0.04450204,69009.0,69006.0,0.7216]
[1729478641013,0.04450327,69008.0,69006.0,0.7236]
[1729478641221,0.04450327,69007.0,69006.0,0.7236]
[1729478642016,0.96450327,69007.0,69006.0,0.7236]
[1729478642221,1.01650507,69007.0,69006.0,0.7236]
[1729478642608,1.01650507,69007.0,69006.0,0.7216]
[1729478643418,1.01650507,69007.0,69006.0,0.7226]
[1729478645227,0.92,69007.0,69006.0,0.7226]
[1729478645625,0.94540899,69007.0,69006.0,0.7226]
[1729478646521,0.94540899,69007.0,69006.0,0.001]
[1729478646720,0.94540899,69007.0,69006.0,0.3618]
[1729478647024,0.94540899,69007.0,69006.0,0.001]
[1729478647421,0.94540899,69007.0,69006.0,0.3618]
[1729478647920,0.94540899,69007.0,69006.0,0.001]
[1729478647921,0.97620899,69007.0,69006.0,0.001]
[1729478648325,1.41096899,69007.0,69006.0,0.001]
[1729478648537,0.07248,69001.0,69000.0,0.3608]
[1729478649125,0.99248,69001.0,69000.0,0.3608]
[1729478650418,0.99348,69001.0,69000.0,0.3678]
[1729478653021,1.03799043,69001.0,69000.0,0.3678]
[1729478658336,0.96551043,69001.0,69000.0,0.3678]
[1729478660134,0.921,69001.0,69000.0,0.3678]
[1729478664128,0.921,69001.0,69000.0,0.80256]
[1729478664532,0.921,69001.0,69000.0,0.86039636]
[1729478664838,0.00217439,69015.0,69000.0,0.86039636]
[1729478664839,0.00217439,69015.0,69000.0,1.46039636]
[1729478665138,0.2407,69053.0,69014.0,0.7216]
[1729478665139,0.3608,69048.0,69014.0,0.7216]
[1729478665337,0.3608,69048.0,69028.0,0.3608]
[1729478665338,0.00217335,69031.0,69028.0,0.3608]
[1729478666834,0.00217335,69031.0,69028.0,0.3618]
[1729478666835,0.00317335,69031.0,69028.0,0.3618]
[1729478667632,0.02828728,69031.0,69028.0,0.3618]
[1729478667832,0.00817335,69031.0,69028.0,0.3618]
[1729478670845,0.00817335,69031.0,69029.0,0.4346]
[1729478671034,0.00817335,69031.0,69028.0,0.7964]
[1729478671338,0.00817335,69031.0,69028.0,0.3618]
[1729478671838,0.82,69030.0,69028.0,0.3618]
[1729478672339,0.82,69030.0,69029.0,0.4346]
[1729478672541,0.82,69030.0,69029.0,0.001]
[1729478673233,0.82,69030.0,69028.0,0.3608]
[1729478673438,0.827,69030.0,69028.0,0.3618]
[1729478673829,0.826,69030.0,69028.0,0.3608]
[1729478674030,0.827,69030.0,69029.0,0.001]
[1729478675235,0.92346682,69030.0,69029.0,0.001]
[1729478675434,0.92346682,69030.0,69028.0,0.3608]
[1729478675435,0.92246682,69030.0,69028.0,0.3618]
[1729478675645,0.09646682,69029.0,69028.0,0.3618]
[1729478676243,0.09646682,69029.0,69028.0,0.3608]
[1729478676839,0.09746682,69029.0,69028.0,0.3608]
[1729478677442,0.10146682,69029.0,69028.0,0.3608]
[1729478679245,0.1014663,69029.0,69028.0,0.3608]
[1729478680538,0.04948515,69029.0,69028.0,0.3608]
[1729478680941,0.04548515,69029.0,69028.0,0.3618]
[1729478681245,0.09746416,69029.0,69028.0,0.3618]
[1729478681452,0.09746416,69029.0,69028.0,0.7964]
[1729478681953,0.09746416,69029.0,69028.0,0.3618]
[1729478682149,0.09646416,69029.0,69028.0,0.28954001]
[1729478682345,0.001,69029.0,69028.0,0.28954001]
[1729478690246,0.04548311,69029.0,69028.0,0.28954001]
[1729478690944,0.001,69029.0,69028.0,1.32414001]
[1729478691742,0.02483258,69045.0,69028.0,1.32414001]
[1729478691955,0.15731794,69046.0,69044.0,0.3608]
[1729478692159,0.20226261,69045.0,69044.0,0.3608]
[1729478692552,0.04447794,69045.0,69044.0,0.3608]
[1729478692951,0.04547794,69045.0,69044.0,0.3608]
[1729478693145,0.04547794,69045.0,69044.0,0.3648]
[1729478693747,0.04547794,69045.0,69044.0,0.3718]
[1729478694145,0.86547794,69045.0,69044.0,0.3718]
[1729478694453,0.91745001,69045.0,69044.0,0.3718]
[1729478694655,0.91745001,69045.0,69044.0,0.3728]
[1729478695955,0.86547794,69045.0,69044.0,0.3728]
[1729478696956,1.07552052,69045.0,69044.0,0.3728]
[1729478697155,0.91745038,69045.0,69044.0,0.3728]
[1729478697355,0.821,69045.0,69044.0,0.3728]
[1729478697755,0.821,69045.0,69044.0,0.3229]
[1729478699363,0.86548041,69045.0,69044.0,0.3229]
[1729478699949,0.86548041,69045.0,69044.0,0.012]
[1729478701952,0.821,69045.0,69044.0,0.012]
[1729478703264,0.86547991,69045.0,69044.0,0.012]
[1729478703656,0.821,69045.0,69044.0,0.012]
[1729478704767,0.86547947,69045.0,69044.0,0.012]
[1729478705354,0.98989075,69045.0,69043.0,0.33552001]
[1729478705554,0.16889175,69044.0,69037.0,0.3608]
[1729478705967,0.09645575,69043.0,69037.0,0.3608]
[1729478706262,0.91645575,69042.0,69037.0,0.433242]
[1729478706456,0.09645575,69041.0,69037.0,0.433242]
[1729478706758,0.09645575,69040.0,69037.0,0.433242]
[1729478706963,0.09645575,69039.0,69037.0,0.433242]
[1729478707156,0.09645575,69038.0,69037.0,0.433242]
[1729478707671,0.09645575,69038.0,69037.0,0.439242]
[1729478708555,0.09745575,69038.0,69037.0,0.442242]
[1729478708950,0.09845575,69038.0,69037.0,0.3738]
[1729478710162,0.04647947,69038.0,69037.0,0.3738]
[1729478711362,0.09846058,69038.0,69037.0,0.3738]
[1729478711565,0.12381445,69038.0,69037.0,0.3738]
[1729478712362,0.02735387,69038.0,69037.0,0.3738]
[1729478722872,0.02735387,69038.0,69037.0,0.013]
[1729478723072,0.07183912,69038.0,69037.0,0.013]
[1729478723476,0.02735387,69038.0,69037.0,0.013]
[1729478723976,0.02735387,69038.0,69023.0,0.362973]
[1729478723977,0.072455,69025.0,69023.0,0.362973]
[1729478724173,0.9153,69024.0,69023.0,0.362973]
[1729478724676,0.9153,69024.0,69023.0,0.3608]
[1729478725172,0.9153,69024.0,69023.0,0.3638]
[1729478725771,0.9153,69024.0,69023.0,0.3688]
[1729478725963,0.9163,69024.0,69023.0,0.3688]
[1729478726579,0.9163,69024.0,69023.0,0.008]
[1729478727475,1.01279042,69024.0,69023.0,0.008]
[1729478729068,1.03727685,69024.0,69023.0,0.008]
[1729478730464,1.03727664,69024.0,69023.0,0.008]
[1729478731173,0.072457,69023.0,69021.0,0.3608]
[1729478731470,0.04449634,69022.0,69021.0,0.3608]
[1729478731973,0.86449634,69022.0,69021.0,0.3608]
[1729478732281,0.91649021,69022.0,69021.0,0.3658]
[1729478732781,0.91649021,69022.0,69021.0,0.3608]
[1729478733080,0.91649021,69022.0,69021.0,0.3668]
[1729478733081,0.91749021,69022.0,69021.0,0.3668]
[1729478734082,0.91849021,69022.0,69021.0,0.3668]
[1729478735471,0.822,69022.0,69021.0,0.3668]
[1729478738981,0.072467,69014.0,69009.0,0.36297364]
[1729478740385,0.072468,69013.0,69009.0,0.36297364]
[1729478741588,0.073468,69013.0,69009.0,0.36297364]
[1729478742088,0.072469,69012.0,69010.0,0.3608]
[1729478743290,0.82,69011.0,69010.0,0.3608]
[1729478744080,0.82,69011.0,69009.0,0.00217364]
[1729478744081,0.072471,69010.0,69009.0,0.00217364]
[1729478744885,0.892471,69010.0,69009.0,0.00217364]
[1729478745390,0.892471,69010.0,69009.0,0.36297364]
[1729478745683,0.893471,69010.0,69009.0,0.36297364]
[1729478745895,0.893471,69010.0,69009.0,0.3608]
[1729478746190,0.926371,69010.0,69009.0,0.3628]
[1729478747482,0.822,69010.0,69009.0,0.3628]
[1729478749495,0.002,69010.0,69009.0,0.3628]
[1729478749991,0.822,69010.0,69009.0,0.3628]
[1729478750590,0.8665011,69010.0,69009.0,0.3628]
[1729478751289,0.86650105,69010.0,69009.0,0.3628]
[1729478757490,0.822,69010.0,69009.0,0.3628]
[1729478758800,0.822,69010.0,69009.0,0.002]
[1729478759098,0.822,69010.0,69009.0,0.3628]
[1729478759999,0.8537,69010.0,69009.0,0.3628]
[1729478760595,0.8859,69010.0,69009.0,0.3628]
[1729478762698,0.8859,69010.0,69009.0,0.002]
[1729478763990,0.8849,69010.0,69004.0,0.3608]
[1729478764199,0.072476,69005.0,69004.0,0.3608]
[1729478764404,0.072473,69008.0,69002.0,0.3608]
[1729478764588,0.072478,69003.0,69002.0,0.3608]
[1729478764790,0.072485,68997.0,68995.0,0.00217405]
[1729478766302,0.82,68996.0,68995.0,0.00217405]
[1729478767295,0.82,68996.0,68995.0,0.00417405]
[1729478767905,0.821,68996.0,68995.0,0.00417405]
[1729478768599,0.822,68996.0,68995.0,0.00417405]
[1729478773994,0.002,68996.0,68995.0,0.11467644]
[1729478774199,0.0333,68996.0,68995.0,0.11467644]
[1729478774607,0.0333,68996.0,68995.0,0.00417405]
[1729478775107,0.8233,68996.0,68995.0,0.00417405]
[1729478780208,0.85955794,68996.0,68995.0,0.00417405]
[1729478785900,0.85955794,68996.0,68995.0,0.002]
[1729478786215,0.92215794,68996.0,68995.0,0.002]
[1729478787311,0.92115794,68996.0,68995.0,0.002]
[1729478787816,0.072487,68995.0,68994.0,0.3608]
[1729478789016,0.073487,68995.0,68994.0,0.4713139]
[1729478791010,0.073487,68995.0,68994.0,0.1125139]
[1729478794114,0.10974494,68995.0,68994.0,0.1125139]
[1729478796012,0.10974494,68995.0,68994.0,0.002]
[1729478798622,0.03725794,68995.0,68994.0,0.002]
[1729478798914,0.03725794,68995.0,68994.0,0.0332]
[1729478799117,0.03725794,68995.0,68994.0,0.0637]
[1729478799916,0.03725794,68995.0,68994.0,0.0332]
[1729478800222,0.08176739,68995.0,68994.0,0.002]
[1729478800921,0.03725794,68995.0,68994.0,0.002]
[1729478801517,0.08176739,68995.0,68994.0,0.002]
[1729478803124,0.03725794,68995.0,68994.0,0.002]
[1729478804211,0.03725794,68995.0,68994.0,0.0326]
[1729478804420,0.03725794,68995.0,68994.0,0.10504877]
[1729478805316,0.03725794,68995.0,68994.0,0.0326]
[1729478806627,0.03725794,68995.0,68994.0,0.57790228]
[1729478807728,0.03725794,68995.0,68994.0,0.14310228]
[1729478808115,0.03725794,68995.0,68994.0,0.21554619]
[1729478809127,0.03725794,68995.0,68994.0,0.18494619]
[1729478810121,0.03725794,68995.0,68994.0,0.002]
[1729478810323,0.06895794,68995.0,68994.0,0.002]
[1729478810626,0.06895794,68995.0,68994.0,0.04546875]
[1729478811130,0.11347105,68995.0,68994.0,0.002]
[1729478811827,0.90347105,68995.0,68994.0,0.002]
[1729478812722,0.85895794,68995.0,68994.0,0.002]
[1729478821436,0.85895794,68995.0,68994.0,0.05995568]
[1729478823751,0.85895794,68995.0,68994.0,0.002]
[1729478825741,0.85895794,68995.0,68994.0,0.3628]
[1729478831955,0.85895794,68995.0,68994.0,0.42075568]
[1729478833562,0.82725794,68995.0,68994.0,0.3628]
[1729478838162,0.87176732,68995.0,68994.0,0.3628]
[1729478839155,0.82725794,68995.0,68994.0,0.3628]
[1729478840577,0.87176754,68995.0,68994.0,0.3628]
[1729478840862,0.94425454,68995.0,68994.0,0.3628]
[1729478841066,0.89974494,68995.0,68994.0,0.3628]
[1729478849170,0.94425635,68995.0,68994.0,0.3628]
[1729478851771,0.94425633,68995.0,68994.0,0.3628]
[1729478856179,0.89974494,68995.0,68994.0,0.3628]
[1729478871222,0.99626782,68995.0,68994.0,0.3628]
[1729478874522,0.20626782,68995.0,68994.0,0.3628]
[1729478874716,0.05476945,68995.0,68994.0,0.7976]
[1729478875107,0.05476253,68995.0,68994.0,0.8909]
[1729478875314,0.12725138,68995.0,68994.0,0.3628]
[1729478876322,0.16197897,68995.0,68994.0,0.3628]
[1729478877920,0.186305,68995.0,68994.0,0.3628]
[1729478879215,0.14179855,68995.0,68994.0,0.3628]
[1729478883829,0.93179855,68995.0,68994.0,0.3628]
[1729478886124,1.02832952,68995.0,68994.0,0.3628]
[1729478887036,1.02832952,68995.0,68981.0,0.3914]
[1729478887037,0.072493,68989.0,68988.0,0.3608]
[1729478887222,0.11700825,68989.0,68988.0,0.3608]
[1729478887924,0.11700825,68989.0,68981.0,0.3608]
[1729478887925,0.0725,68982.0,68981.0,0.3608]
[1729478888125,0.11701525,68982.0,68981.0,0.3608]
[1729478888420,0.90701525,68982.0,68981.0,0.3608]
[1729478888625,0.95903097,68982.0,68981.0,0.3608]
[1729478888932,1.39391097,68982.0,68981.0,0.3608]
[1729478889526,1.39391794,68982.0,68981.0,0.3608]
[1729478889729,1.39491794,68982.0,68981.0,0.3638]
[1729478889923,1.43990346,68982.0,68981.0,0.3638]
[1729478891138,1.00602346,68982.0,68981.0,0.3638]
[1729478891730,1.03071977,68982.0,68981.0,0.3638]
[1729478894229,0.93418183,68982.0,68981.0,0.3638]
[1729478901333,0.97870416,68982.0,68981.0,0.3638]
[1729478903535,1.03098833,68982.0,68981.0,0.3638]
[1729478904240,1.0309886,68982.0,68981.0,0.3638]
[1729478905137,0.9584886,68982.0,68981.0,0.3638]
[1729478905339,0.86194169,68982.0,68981.0,0.3638]
[1729478905533,0.11645973,68982.0,68981.0,0.3638]
[1729478905835,0.07200169,68982.0,68981.0,0.3638]
[1729478906044,0.11651934,68982.0,68981.0,0.3638]
[1729478906233,0.1165193,68982.0,68981.0,0.3638]
[1729478909233,0.07200169,68982.0,68981.0,0.3638]
[1729478910434,0.07200169,68982.0,68981.0,0.003]
[1729478910435,0.86200169,68982.0,68981.0,0.003]
[1729478910830,0.93450169,68982.0,68981.0,0.003]
[1729478912145,0.86000169,68982.0,68972.0,0.3608]
[1729478912339,0.07251,68973.0,68972.0,0.3608]
[1729478912838,0.12339445,68973.0,68972.0,0.3608]
[1729478914037,0.12439445,68973.0,68972.0,0.3638]
[1729478915540,0.12539445,68973.0,68972.0,0.3658]
[1729478916641,0.12539445,68973.0,68972.0,0.42378904]
[1729478916843,0.12539445,68973.0,68972.0,0.3658]
[1729478917339,0.14994547,68973.0,68972.0,0.3658]
[1729478918740,0.93994547,68973.0,68972.0,0.3658]
[1729478919344,0.93994547,68973.0,68972.0,0.4092821]
[1729478919742,0.93994547,68973.0,68972.0,0.005]
[1729478920240,0.43496,68972.0,68966.0,0.0579765]
[1729478920550,0.43496,68972.0,68955.0,0.07573405]
[1729478920551,0.072528,68956.0,68955.0,0.07573405]
[1729478920851,0.986448,68956.0,68955.0,0.07573405]
[1729478921370,0.986448,68956.0,68936.0,0.3916]
[1729478921371,0.07254,68944.0,68923.0,0.03771348]
[1729478921646,0.07254,68944.0,68912.0,0.00085257]
[1729478921647,0.072566,68920.0,68912.0,0.00085257]
[1729478921844,0.072568,68919.0,68912.0,0.00085257]
[1729478922146,0.3608,68924.0,68910.0,0.3608]
[1729478922335,0.3608,68924.0,68897.0,0.3608]
[1729478922336,0.3608,68911.0,68897.0,0.3608]
[1729478922537,0.79,68909.0,68903.0,0.3608]
[1729478922738,0.072579,68907.0,68903.0,0.3608]
[1729478922937,0.072582,68904.0,68903.0,0.3608]
[1729478923360,0.072585,68902.0,68897.0,0.3608]
[1729478923647,0.79,68909.0,68897.0,0.3608]
[1729478923838,0.072587,68900.0,68897.0,0.3608]
[1729478924349,0.3608,68905.0,68897.0,0.3608]
[1729478924643,0.863338,68909.0,68897.0,0.3608]
[1729478924941,0.862578,68909.0,68897.0,0.3608]
[1729478925350,0.88773182,68909.0,68897.0,0.3608]
[1729478925942,0.82615382,68909.0,68897.0,0.3608]
[1729478926444,0.05088445,68903.0,68897.0,0.3608]
[1729478928544,0.05088445,68903.0,68897.0,0.3924]
[1729478928742,0.05588445,68903.0,68897.0,0.3924]
[1729478929751,0.05388445,68903.0,68897.0,0.3924]
[1729478929952,0.05488445,68903.0,68897.0,0.3924]
[1729478930452,0.05188445,68903.0,68897.0,0.3924]
[1729478931151,0.81515382,68909.0,68901.0,0.3608]
[1729478931338,0.81515382,68909.0,68908.0,0.3608]
[1729478932444,0.0021774,68919.0,68908.0,0.3608]
[1729478932646,0.0021774,68919.0,68918.0,0.3608]
[1729478932647,0.02763301,68919.0,68918.0,0.3608]
[1729478932948,0.7921774,68919.0,68918.0,0.3608]
[1729478933948,0.7981774,68919.0,68918.0,0.3608]
[1729478934949,0.8061774,68919.0,68918.0,0.3608]
[1729478935450,1.1669774,68919.0,68908.0,0.00076]
[1729478935750,0.072581,68905.0,68903.0,0.002177]
[1729478936352,0.507981,68905.0,68903.0,0.002177]
[1729478936751,0.507981,68905.0,68901.0,0.3608]
[1729478936752,0.4354,68905.0,68901.0,0.3608]
[1729478936953,0.072582,68905.0,68901.0,0.3608]
[1729478937253,0.072584,68902.0,68901.0,0.3608]
[1729478938050,0.072584,68902.0,68884.0,0.0306]
[1729478938051,0.072589,68898.0,68894.0,0.3608]
[1729478938653,0.79,68897.0,68894.0,0.3608]
[1729478939455,0.79,68897.0,68896.0,0.00107]
[1729478940048,0.791,68897.0,68896.0,0.00207]
[1729478941051,0.791,68897.0,68888.0,0.3608]
[1729478941052,0.072591,68896.0,68888.0,0.3608]
[1729478941354,0.072598,68889.0,68888.0,0.3608]
[1729478941742,0.07972015,68889.0,68888.0,0.3608]
[1729478941956,0.07972015,68889.0,68883.0,0.0315]
[1729478941957,0.80340215,68889.0,68883.0,0.0315]
[1729478942259,0.43552,68888.0,68872.0,0.0302]
[1729478942554,0.072617,68872.0,68870.0,0.3608]
[1729478943252,0.072617,68872.0,68864.0,9e-05]
[1729478943253,0.072622,68866.0,68864.0,9e-05]
[1729478943560,0.3608,68865.0,68864.0,9e-05]
[1729478944155,0.3608,68871.0,68864.0,9e-05]
[1729478944364,0.02558771,68872.0,68864.0,9e-05]
[1729478944365,0.3608,68865.0,68864.0,9e-05]
[1729478944955,0.11808,68870.0,68864.0,9e-05]
[1729478945251,0.3618,68865.0,68864.0,9e-05]
[1729478945457,0.3618,68865.0,68850.0,0.0325]
[1729478945458,0.072631,68858.0,68850.0,0.0325]
[1729478945645,0.072631,68858.0,68838.0,0.3608]
[1729478945646,0.072637,68852.0,68838.0,0.3608]
[1729478945847,0.43,68847.0,68840.0,0.072649]
[1729478946150,0.43,68847.0,68839.0,0.0962]
[1729478946351,0.23893467,68858.0,68846.0,0.76516192]
[1729478946657,0.07264,68849.0,68848.0,0.10037689]
[1729478946852,0.07264,68849.0,68848.0,0.24552562]
[1729478947057,0.19072,68849.0,68848.0,0.24552562]
[1729478947357,0.98008291,68849.0,68848.0,0.24552562]
[1729478947862,0.98008291,68849.0,68848.0,0.00552562]
[1729478947863,0.59008291,68849.0,68848.0,0.00552562]
[1729478948157,0.59008291,68849.0,68838.0,0.3608]
[1729478948158,0.072651,68839.0,68838.0,0.3608]
[1729478948349,0.11808,68849.0,68838.0,0.62003849]
[1729478948548,0.3608,68844.0,68838.0,0.3608]
[1729478948952,0.072646,68844.0,68838.0,0.3608]
[1729478949156,0.11812,68843.0,68838.0,0.3608]
[1729478949355,0.001,68839.0,68838.0,0.3608]
[1729478949757,0.001,68839.0,68835.0,0.10037689]
[1729478949758,0.072652,68838.0,68835.0,0.10037689]
[1729478949955,0.001,68839.0,68831.0,0.46197689]
[1729478950151,0.072658,68833.0,68831.0,0.3608]
[1729478950459,0.001,68839.0,68825.0,0.10037689]
[1729478950761,0.001,68839.0,68828.0,0.10037689]
[1729478950762,0.11812,68838.0,68828.0,0.10037689]
[1729478951058,0.072656,68834.0,68828.0,0.10037689]
[1729478951260,0.43584,68837.0,68825.0,0.11582649]
[1729478951450,0.47892,68838.0,68816.0,0.00012]
[1729478951451,0.072672,68819.0,68816.0,0.00012]
[1729478951657,0.072674,68817.0,68816.0,0.00012]
[1729478951955,0.190794,68817.0,68816.0,0.00012]
[1729478952457,0.776754,68817.0,68816.0,0.00012]
[1729478952761,0.340794,68817.0,68816.0,0.00012]
[1729478953165,0.24806107,68817.0,68816.0,0.00012]
[1729478953369,0.36618107,68817.0,68816.0,0.00012]
[1729478953662,0.24806107,68817.0,68816.0,0.00012]
[1729478954160,0.25006107,68817.0,68816.0,0.00012]
[1729478954858,0.17538707,68817.0,68816.0,0.00012]
[1729478955052,0.18038707,68817.0,68816.0,0.00012]
[1729478955363,0.18338707,68817.0,68816.0,0.00012]
[1729478956771,0.03338707,68817.0,68816.0,0.00012]
[1729478957063,0.008,68817.0,68816.0,0.00012]
[1729478957250,0.072666,68825.0,68816.0,0.00012]
[1729478957454,0.36821474,68837.0,68824.0,0.3608]
[1729478957455,0.479,68837.0,68824.0,0.3608]